Cogmind - Beta 10.2 @@@ ROGUE MODE // 2021.05.04 @ 21:29:41 Player: Teratos Result: Self-destructed Performance ------------- Evolutions (3) 1500 Regions Visited (6) 1200 Robots Destroyed (48) 240 Value Destroyed (1448) 1448 Prototype IDs (6) 120 Alien Tech Used (0) 0 Bonus (355) 355 TOTAL SCORE: 4863 Bonus ------- High Alert Combat Kills 55 Aligned with FarCom 300 Cogmind --------- Core Integrity 700/700 Matter 288/300 Energy 430/430 System Corruption 0% Temperature Cool (0) Movement Walking (127) Location -7/Factory Parts ------- > --- POWER (2) -------- Improved Ion Engine Improved Ion Engine > --- PROPULSION (4) --- Aluminum Leg Improved Titanium Leg Improved Titanium Leg Improved Titanium Leg > --- UTILITY (4) ------ Improved Heat Sink Improved Heat Sink 0b10 Alert Chip > --- WEAPON (3) ------- Heavy Particle Cannon Gauss Rifle > --- INVENTORY (4) ---- Improved Ion Engine Guided Plasma Cannon High-powered Shotgun Advanced EMP Blaster Peak State ------------ > --- POWER ------------ Improved Ion Engine Light Deuterium Engine > --- PROPULSION ------- Improved Aluminum Leg Improved Titanium Leg Improved Titanium Leg Improved Titanium Leg > --- UTILITY ---------- Improved Heat Sink Improved Heat Sink 0b10 Alert Chip > --- WEAPON ----------- Guided Plasma Cannon Gauss Rifle > --- INVENTORY -------- Flight Unit Autogun High-powered Shotgun Advanced EMP Blaster [Rating: 44] Favorites ----------- Power Improved Ion Engine Engine Improved Ion Engine Propulsion Improved Titanium Leg Treads Light Treads Leg Improved Titanium Leg Wheel Wheel Flight Unit Flight Unit Utility 0b10 Alert Chip Device Improved Heat Sink Storage Small Storage Unit Processor 0b10 Alert Chip Weapon Guided Plasma Cannon Energy Gun Medium Laser Energy Cannon Guided Plasma Cannon Ballistic Gun Gauss Rifle Launcher Advanced EMP Blaster Build | -11 -10 -10 -10 -9 -8 -7 ------- Run | Scr Mat Min Exi Min Mat Fac Slots Evolved 6 | . . . . . 4 2 Power 1 | . . . . . 1 . Propulsion 2 | . . . . . 2 . Utility 2 | . . . . . 1 1 Weapon 1 | . . . . . . 1 Parts Attached 46 | 6 4 5 2 10 19 . Power 6 | 1 . . . 1 4 . Engine 6 | 1 . . . 1 4 . Core . | . . . . . . . Reactor . | . . . . . . . Propulsion 13 | 2 1 2 . 4 4 . Treads 2 | 2 . . . . . . Leg 6 | . . . . 2 4 . Wheel 2 | . . . . 2 . . Hover . | . . . . . . . Flight 3 | . 1 2 . . . . Utility 6 | 1 1 . 1 1 2 . Device 3 | . . . . 1 2 . Storage 1 | 1 . . . . . . Processor 2 | . 1 . 1 . . . Hackware . | . . . . . . . Protection . | . . . . . . . Artifact . | . . . . . . . Weapon 21 | 2 2 3 1 4 9 . Energy Gun 4 | 1 1 1 . 1 . . Energy Cannon 6 | . . . 1 1 4 . Ballistic Gun 10 | 1 1 2 . 2 4 . Ballistic Cannon . | . . . . . . . Launcher 1 | . . . . . 1 . Special Weapon . | . . . . . . . Impact Weapon . | . . . . . . . Slashing Weapon . | . . . . . . . Piercing Weapon . | . . . . . . . Special Melee Weapon . | . . . . . . . Unidentified Prototypes 4 | . . . 3 . 1 . Parts Lost 7 | . . . . 6 1 . Power 1 | . . . . 1 . . Propulsion 2 | . . . . 2 . . Utility 1 | . . . . . 1 . Weapon 3 | . . . . 3 . . Highest Loss Streak 6 | . . . . 6 1 . Average Slot Usage (%) 90 | . 66 83 85 90 95 84 Engine 15 | . 14 14 14 13 17 15 Leg 21 | . . . . 17 35 30 Wheel 1 | . . . . 7 . . Flight 7 | . 6 27 28 . . . Device 9 | . . . . 8 14 15 Processor 10 | . 2 14 14 14 9 7 Energy Gun 4 | . 9 12 14 4 . . Energy Cannon 7 | . . . 5 12 8 7 Ballistic Gun 9 | . 13 14 8 10 8 7 Naked Turns . | . . . . . . . Heaviest Build 30 | 10 10 6 15 20 30 26 Greatest Support 73 | 40 40 8 8 23 73 70 Greatest Overweight (x) 5 | . 3 . 1 5 1 . Average Overweight (x) . | . . . . . . . Largest Inventory Capacity 6 | 6 6 4 4 4 4 4 Average Capacity 4 | 5 5 4 4 4 4 4 Most Carried 4 | . 1 4 4 4 4 4 Average Carried 3 | . . 3 4 3 3 4 Final Capacity 6 | 6 4 4 4 4 4 4 Final Carried 4 | . 1 4 4 4 4 4 Class Distribution -------------------- 60% | Mutant 39% | Scavenger-Mutant Dominant Class ---------------- Mutant | -10/Materials Mutant | -10/Mines Mutant | -10/Exiles Mutant | -9/Mines Scavenger-Mutant | -8/Materials Scavenger-Mutant | -7/Factory Resources | -11 -10 -10 -10 -9 -8 -7 ----------- Run | Scr Mat Min Exi Min Mat Fac Matter Collected 898 | 40 41 278 . 153 386 . Remotely . | . . . . . . . Salvage Created 1798 | . 41 18 . 240 1499 . Parts 100 | . 5 . . 19 76 . Haulers Intercepted 5 | . 1 . . . 4 . Recyclers Shooed . | . . . . . . . Parts Field Recycled . | . . . . . . . Retrieved Matter . | . . . . . . . Parts Self-Destructed . | . . . . . . . Prevented . | . . . . . . . Kills | -11 -10 -10 -10 -9 -8 -7 ------- Run | Scr Mat Min Exi Min Mat Fac Combat Hostiles Destroyed 35 | . . 1 . 9 25 . Guns 11 | . . 1 . 5 5 . Cannons 24 | . . . . 4 20 . Classes Destroyed 13 | . 1 1 . 5 6 . Worker 2 | . . . . 2 . . Builder 2 | . . . . . 2 . Hauler 5 | . 1 . . . 4 . Mechanic 1 | . . . . . 1 . Operator 2 | . . . . . 2 . Watcher 3 | . . . . . 3 . Swarmer 7 | . . 1 . 3 3 . Grunt 15 | . . . . 2 13 . Duelist 2 | . . . . 1 1 . Sentry 6 | . . . . . 6 . Demolisher 1 | . . . . 1 . . Hunter 2 | . . . . . 2 . Assembled 2 | . . . . 2 . . Best Kill Streak 6 | . 1 1 . 6 6 . Combat Bots Only 6 | . . 1 . 6 5 . Max Kills in Single Turn 2 | . 1 1 . 1 2 . Gunslinging . | . . . . . . . Exploded . | . . . . . . . Melee . | . . . . . . . Uniques/NPCs Destroyed . | . . . . . . . Combat | -11 -10 -10 -10 -9 -8 -7 -------- Run | Scr Mat Min Exi Min Mat Fac Damage Taken 1185 | . . 47 . 521 617 . Core 289 | . . 24 . 163 102 . Absorbed by Shields . | . . . . . . . Core Remaining (%) 68 | 100 . . . 25 81 . Volleys Fired 153 | . 5 4 1 31 112 . Largest 2 | . 2 1 1 2 2 . Hottest 120 | . 70 20 120 120 120 . Shots Fired 208 | . 10 4 1 40 153 . Gun 98 | . 10 4 . 32 52 . Cannon 110 | . . . 1 8 101 . Launcher . | . . . . . . . Special . | . . . . . . . Kinetic 76 | . 5 4 . 15 52 . Thermal 132 | . 5 . 1 25 101 . Explosive . | . . . . . . . Electromagnetic . | . . . . . . . Robot Hit Streak 25 | . 6 8 . 6 25 . Robot Miss Streak 3 | . 1 2 . 3 3 . Penetration Max 1 | . . . . . 1 . Secondary Targets 1 | . . . . 1 . . Max Gunslinging Chain 1 | . . . . 1 . . Shots Hit Robots 100 | . 7 2 . 21 70 . Core Hits 62 | . 2 1 . 15 44 . Critical Hits 2 | . 1 . . . 1 . Critical Kills 1 | . . . . . 1 . Critical Parts Destroyed 1 | . 1 . . . . . Melee Attacks . | . . . . . . . Impact . | . . . . . . . Slashing . | . . . . . . . Piercing . | . . . . . . . Sneak Attacks . | . . . . . . . Combat Hostiles . | . . . . . . . Follow-up Attacks . | . . . . . . . Damage Inflicted 3287 | . 62 8 . 406 2811 . Guns 817 | . 62 8 . 232 515 . Cannons 2459 | . . . . 170 2289 . Explosions . | . . . . . . . Melee . | . . . . . . . Ramming 11 | . . . . 4 7 . Kinetic 638 | . 25 8 . 90 515 . Thermal 2638 | . 37 . . 312 2289 . Explosive . | . . . . . . . Electromagnetic . | . . . . . . . Impact . | . . . . . . . Slashing . | . . . . . . . Piercing . | . . . . . . . Highest Corruption . | . . . . . . . Average Corruption . | . . . . . . . Corruption Purged . | . . . . . . . Overload Shots . | . . . . . . . Overflow Damage 107 | . . . . 11 96 . Projectiles 107 | . . . . 11 96 . Explosions . | . . . . . . . Melee . | . . . . . . . Knockbacks . | . . . . . . . Impact . | . . . . . . . Kinetic . | . . . . . . . Secondary . | . . . . . . . Self-Inflicted Damage 3 | . . . . 2 1 . Shots . | . . . . . . . Rammed 2 | . . . . 1 1 . Targets Rammed 3 | . . . . 1 2 . Kicked 1 | . . . . . 1 . Crushed . | . . . . . . . Highest Temperature 408 | . 70 2 84 359 408 . Average Temperature 132 | . 32 1 47 167 131 . Received Heat Transfer 468 | . . . . 108 360 . Effects 6 | . . . . 4 2 . Energy Bleed 2 | . . . . 1 1 . Interference 3 | . . . . 3 . . Short Circuit 1 | . . . . . 1 . Siege Activations . | . . . . . . . Robots Corrupted . | . . . . . . . Combat Hostiles . | . . . . . . . Parts Fried . | . . . . . . . Impact Corruptions . | . . . . . . . Robots Melted . | . . . . . . . Combat Hostiles . | . . . . . . . Parts Melted 10 | . . . . . 10 . Heat Transferred 5696 | . 111 . . 796 4789 . Parts Sabotaged . | . . . . . . . Parts Stolen . | . . . . . . . Parts Stripped . | . . . . . . . Power Chain Reactions . | . . . . . . . Missiles Intercepted . | . . . . . . . Alert | -11 -10 -10 -10 -9 -8 -7 ------- Run | Scr Mat Min Exi Min Mat Fac Peak Influence 576 | . 7 22 . 90 576 211 Initial 211 | . . 2 . . 17 211 Average 176 | . 4 21 . 44 286 211 Maximum Alert Level 2 | . . . . . 2 1 Low Security (%) 63 | 100 100 100 . 100 36 . Level 1 14 | . . . . . 24 100 Level 2 22 | . . . . . 38 . Level 3 . | . . . . . . . Level 4 . | . . . . . . . Level 5 . | . . . . . . . High Security . | . . . . . . . Max Security . | . . . . . . . Squads Dispatched 8 | . 3 . . . 5 . Investigation 4 | . . . . . 4 . Extermination . | . . . . . . . Reinforcement 4 | . 3 . . . 1 . Assault . | . . . . . . . Garrison . | . . . . . . . Intercept . | . . . . . . . Construction Impeded 1 | . . . . . 1 . Haulers Reinforced . | . . . . . . . Stealth | -11 -10 -10 -10 -9 -8 -7 --------- Run | Scr Mat Min Exi Min Mat Fac Distress Signals 3 | . 1 . . . 2 . Communications Jammed . | . . . . . . . Distress Signals . | . . . . . . . Times Spotted 39 | . 1 5 . 9 24 . Peak Tracking Total 6 | . . 5 . 4 6 . Tactical Retreats 2 | . . . . . 2 . Traps | -11 -10 -10 -10 -9 -8 -7 ------- Run | Scr Mat Min Exi Min Mat Fac Traps Triggered . | . . . . . . . Indirectly . | . . . . . . . Trap Hack Attempts . | . . . . . . . Triggered . | . . . . . . . Disarmed . | . . . . . . . Reprogrammed 4 | . . . . . 4 . Reused 1 | . . . . . 1 . Traps Extracted . | . . . . . . . Installed . | . . . . . . . Triggered 1 | . . . . . 1 . Machines | -11 -10 -10 -10 -9 -8 -7 ---------- Run | Scr Mat Min Exi Min Mat Fac Machines Disabled 3 | . . . . . 3 . Max in Single Turn 1 | . . . . . 1 . Machines Sabotaged . | . . . . . . . Garrisons Compromised . | . . . . . . . Overloaded Fab Kills . | . . . . . . . Fab Network Shutdowns . | . . . . . . . Hacking | -11 -10 -10 -10 -9 -8 -7 --------- Run | Scr Mat Min Exi Min Mat Fac Machines Accessed 11 | . . . 3 . 8 . Terminals 6 | . . . . . 6 . Fabricators . | . . . . . . . Repair Stations 1 | . . . . . 1 . Recycling Units . | . . . . . . . Scanalyzers 1 | . . . . . 1 . Garrison Access . | . . . . . . . Total Hacks 49 | . . . 26 . 23 . Successful 36 | . . . 26 . 10 . Failed 13 | . . . . . 13 . Catastrophic 1 | . . . . . 1 . Database Lockouts . | . . . . . . . Manual 1 | . . . 1 . . . Terminals 14 | . . . . . 14 . Fabricators . | . . . . . . . Repair Stations 4 | . . . . . 4 . Recycling Units . | . . . . . . . Scanalyzers 5 | . . . . . 5 . Garrison Access . | . . . . . . . Terminal Hacks 30 | . . . 26 . 4 . Record 26 | . . . 26 . . . Prototype ID Bank 1 | . . . . . 1 . Emergency Access Points 1 | . . . . . 1 . Alert Level 1 | . . . . . 1 . Reprogram Traps 1 | . . . . . 1 . Fabricator Hacks . | . . . . . . . Repair Station Hacks 1 | . . . . . 1 . Scan Component 1 | . . . . . 1 . Recycling Unit Hacks . | . . . . . . . Scanalyzer 5 | . . . . . 5 . Insert Component 3 | . . . . . 3 . Analyze 2 | . . . . . 2 . Garrison Access Hacks . | . . . . . . . Unauthorized Hacks . | . . . . . . . Terminals . | . . . . . . . Fabricators . | . . . . . . . Repair Stations . | . . . . . . . Recycling Units . | . . . . . . . Scanalyzers . | . . . . . . . Garrison Access . | . . . . . . . Data Cores Recovered 2 | . . . . . 2 . Used . | . . . . . . . Hacking Detections 5 | . . . . . 5 . Full Trace Events 4 | . . . . . 4 . Feedback Events . | . . . . . . . Feedback Blocked . | . . . . . . . Robot Schematics Acquired . | . . . . . . . Robots Built . | . . . . . . . Matter . | . . . . . . . Time . | . . . . . . . Total Robot Build Rating . | . . . . . . . Part Schematics Acquired 1 | . . . . . 1 . Parts Built . | . . . . . . . Matter . | . . . . . . . Time . | . . . . . . . Total Part Build Rating . | . . . . . . . Parts Repaired . | . . . . . . . Time . | . . . . . . . Parts Recycled . | . . . . . . . Recycled Matter . | . . . . . . . Retrieved Matter . | . . . . . . . Retrieved Components . | . . . . . . . Parts Scanalyzed 1 | . . . . . 1 . Part Schematics Acquired 1 | . . . . . 1 . Parts Damaged . | . . . . . . . Bothacking | -11 -10 -10 -10 -9 -8 -7 ------------ Run | Scr Mat Min Exi Min Mat Fac Used RIF Installer . | . . . . . . . Robots Hacked . | . . . . . . . Non-combat . | . . . . . . . Combat . | . . . . . . . Robot Hacks Applied . | . . . . . . . Relay Couplers Released . | . . . . . . . Robots Rewired . | . . . . . . . Allies Hacked . | . . . . . . . Hacks Repelled . | . . . . . . . Allies | -11 -10 -10 -10 -9 -8 -7 -------- Run | Scr Mat Min Exi Min Mat Fac Total Allies . | . . . . . . . Largest Group . | . . . . . . . Highest-Rated Group . | . . . . . . . Highest-Rated Ally . | . . . . . . . Total Orders . | . . . . . . . Ally Attacks . | . . . . . . . Total Damage . | . . . . . . . Kills . | . . . . . . . Allies Corrupted . | . . . . . . . Allies Melted . | . . . . . . . Intel | -11 -10 -10 -10 -9 -8 -7 ------- Run | Scr Mat Min Exi Min Mat Fac Robot Analysis Total . | . . . . . . . Derelict Logs Recovered 3 | . . 1 . 2 . . Drone Launches . | . . . . . . . Drone Recoveries . | . . . . . . . Exploration | -11 -10 -10 -10 -9 -8 -7 ------------- Run | Scr Mat Min Exi Min Mat Fac Turns Passed 3160 | 46 139 404 383 601 1584 3 Spaces Moved 2474 | 26 138 441 752 446 669 2 Core 15 | 3 1 . . 11 . . Treads 58 | 23 35 . . . . . Legs 965 | . . . . 294 669 2 Wheels 141 | . . . . 141 . . Hover . | . . . . . . . Flight 1295 | . 102 441 752 . . . Fastest Speed 37 | 50 40 37 37 50 120 127 Average Speed 82 | 147 75 37 49 109 128 127 Slowest Speed 300 | 160 200 40 117 300 160 127 Overloaded Moves . | . . . . . . . Propulsion Burnouts . | . . . . . . . Robots Hopped 16 | . . 16 . . . . Cave-ins Triggered . | . . . . . . . Time Travels 1 | . . . 1 . . . Exploration Rate (%) 52 | 3 24 70 94 70 54 . Regions Visited 6 Branch Regions 3 Pre-discovered Areas 1 | . . 1 . . . . Known Exits Taken . | . . . . . . . Unknown Exits Taken 6 | 1 1 1 1 1 1 . Scrap Searched 3 | . . . . 3 . . Spaces Dug 4 | . . . . . 4 . Terrain Destroyed 28 | . . . . 3 25 . Melee . | . . . . . . . Projectile 28 | . . . . 3 25 . AOE . | . . . . . . . Terrain Rammed . | . . . . . . . Walls Destroyed . | . . . . . . . Machines Disabled . | . . . . . . . Actions | -11 -10 -10 -10 -9 -8 -7 --------- Run | Scr Mat Min Exi Min Mat Fac Total 3370 | 31 163 659 762 519 1234 2 Wait 687 | . 11 223 6 28 419 . Move 2437 | 25 137 409 751 445 668 2 Hop 15 | . . 15 . . . . Pick Up 6 | . . 2 . 1 3 . Fast Attach 34 | 6 4 3 2 9 10 . Attach 1 | . . . . 1 . . Detach 2 | . 1 . . . 1 . Swap 11 | . . 2 . . 9 . Drop 21 | . 5 1 2 3 10 . Fire 153 | . 5 4 1 31 112 . Melee . | . . . . . . . Ram 1 | . . . . 1 . . Kick 2 | . . . . . 2 . Crush . | . . . . . . . Escape Stasis . | . . . . . . . Rewire . | . . . . . . . Trap . | . . . . . . . Miscellaneous . | . . . . . . . Route ------- -11/Scrapyard -10/Materials -10/Mines (discovered 3 exits: [*Mat x2] / *Exi) -10/Exiles (discovered 2 exits: [*Min x2]) -9/Mines -8/Materials (discovered 2 exits: [*Fac x2]) -7/Factory History --------- Turn | Location | Event 23 | -11/Scrapyard | Discovered new exit (range 16) 47 | -11/Scrapyard | Entered Materials 168 | -10/Materials | Met 8R-AWN 169 | -10/Materials | Discovered new exit (range 12) 186 | -10/Materials | Entered Mines 187 | -10/Mines | Followed 8R-AWN into the Mines 221 | -10/Mines | Discovered new exit (range 14) 244 | -10/Mines | Excavation squad dispatched 244 | -10/Mines | A large section of the Mines collapsed 313 | -10/Mines | Build established: Mutant 577 | -10/Mines | Discovered new exit (range 15) 583 | -10/Mines | Learned location of Storage (-9) 589 | -10/Mines | Discovered new exit (range 5) 590 | -10/Mines | Entered Exiles 601 | -10/Exiles | Welcomed by 8R-AWN 616 | -10/Exiles | Discovered new exit (range 14) 629 | -10/Exiles | Met EX-HEX 649 | -10/Exiles | Met EX-DEC 656 | -10/Exiles | Visited The Gauntlet 750 | -10/Exiles | Discovered new exit (range 14) 777 | -10/Exiles | Met EX-BIN 786 | -10/Exiles | Aligned with FarCom system 786 | -10/Exiles | Given EX-Vault access code 825 | -10/Exiles | Opened EX-Vault 827 | -10/Exiles | Found Prototype Energy Cannon 827 | -10/Exiles | Identified Gui. Plasma Cannon 830 | -10/Exiles | Found Prototype Processor 830 | -10/Exiles | Identified 0b10 Alert Chip 834 | -10/Exiles | Found Prototype Device 834 | -10/Exiles | Identified Chronowheel 834 | -10/Exiles | Activated Chronowheel 834 | -10/Exiles | Spacetime reconverged on an earlier point 866 | -10/Exiles | Warned to stay clear of 0b10 Research branches 973 | -10/Exiles | Stole two prototypes: Gui. Plasma Cannon, 0b10 Alert Chip 973 | -10/Exiles | Entered Mines 999 | -9/Mines | Learned Materials emergency access door positions 1149 | -9/Mines | Core integrity fell below 50% 1199 | -9/Mines | Lost 6 parts (1p2n3w) 1445 | -9/Mines | Assembled infested the area 1501 | -9/Mines | Discovered new exit (range 11) 1514 | -9/Mines | Received a Rocket Launcher from a helpful Derelict 1524 | -9/Mines | Learned Materials emergency access door positions 1574 | -9/Mines | Entered Materials 1574 | -8/Materials | Evolved 4 slots: Power x1, Propulsion x2, Utility x1 2006 | -8/Materials | Discovered new exit (range 16) 2217 | -8/Materials | Build established: Scavenger-Mutant 2756 | -8/Materials | Discovered new exit (range 9) 3158 | -8/Materials | Entered Factory 3158 | -7/Factory | Evolved 2 slots: Utility x1, Weapon x1 3160 | -7/Factory | FarCom data flow suspended 3161 | -7/Factory | Self-destructed Last Messages --------------- 02753_ U-05 Engineer builds a Wall. 02754_ K-01 Serf collects debris. 02756_ EXIT=FOUND 02757_ K-01 Serf collects debris. 02784_ ALERT: Construction progress impeded, dispatching reinforcements to local area. 02798_ U-05 Engineer builds a Wall. 02813_ K-01 Serf collects debris. 02823_ K-01 Serf cleans the Repair Station. 02832_ K-01 Serf cleans the Nuclear Reactor. 02942_ K-01 Serf collects debris. 02945_ K-01 Serf cleans the Nuclear Reactor. 03129_ Slug penetrates Wall. PARAMETERS=UTILITY_1,WEAPON_1 LOCATION=UNKNOWN GOAL=ESCAPE 03158_ Receiving FarCom transmissions... 03160_ FARCOM_MSG: Not cool, anonymous tester bot. We've taken inventory and discovered your thievery. Let's see how you like having parts stolen! 03160_ FarCom data flow suspended. Map ----- +----------------------------------------------------+ | | | ????????????????????????????????????????????????? | | ????????????????????????????????????????????????? | | ????????????????????????????????????????????????? | | ????????????????????????????????????????????????? | | ????????????????????????????????????????????????? | | ????????????????????????????????????????????????? | | ????????????????????????????????????????????????? | | ????????????????????????????????????????????????? | | ????????????????????????????????????????????????? | | ????????????????????????????????????????????????? | | ????????????????????????????????????????????????? | | ????????????????????????????????????????????????? | | ????????????????????????????????????????????????? | | ????????????????????????????????????????????????? | | ????????????????????????????###?????????????????? | | ??????????????????????#? ? ??????????????????? | | ??????????????????????# [[ !??????????????????? | | ??????????????????????# [ ???????????????????? | | ??????????????????????# ???????????????????? | | ??????????????????????? """ ????????????????????? | | ??????????????????????? """ ????????????????????? | | ????????????????????????"""?????????????????????? | | ???????????????????????? ?????????????????????? | | ??????????????####+######/####??????????????????? | | ??????????????# @ #??????????????????? | | ??????????????# #??????????????????? | | ??????????????# #??????????????????? | | ??????????????# #??????????????????? | | ??????????????# #??????????????????? | | ??????????????# #####+####??????????????????? | | ??????????????# ?????????????????????????????? | | ??????????????# ??????????????????????????????? | | ??????????????# ???????????????????????????????? | | ??????????????# ????????????????????????????????? | | ??????????????#?????????????????????????????????? | | ????????????????????????????????????????????????? | | ????????????????????????????????????????????????? | | ????????????????????????????????????????????????? | | ????????????????????????????????????????????????? | | ????????????????????????????????????????????????? | | ????????????????????????????????????????????????? | | ????????????????????????????????????????????????? | | ????????????????????????????????????????????????? | | ????????????????????????????????????????????????? | | ????????????????????????????????????????????????? | | ????????????????????????????????????????????????? | | ????????????????????????????????????????????????? | | ????????????????????????????????????????????????? | | ????????????????????????????????????????????????? | +----------------------------------------------------+ Best States ------------- Heat Dissipation 62 Energy Generation 21 Energy Capacity 430 Matter Stores 300 Matter Capacity 300 Sight Range 16 Terrain Scan Density 10 Evasion (%) 62 Targeting Accuracy 5 Recoil Reduction 2 Item Schematics ----------------- Adv. EMP Blaster | -8/Materials | Scanalyzed Robot Schematics ------------------ None Fabricated ------------ Nothing Alien Tech Used ----------------- None Achievements -------------- None Challenges ------------ None Game ------ Seed LayeredIonicFemtoactuators Manual? 0 Play Time 01:12:30 Cumulative 51.4 hours Start 2021.05.04 @ 11:46:21 End 2021.05.04 @ 21:29:41 Sessions 1 Manual Loads 0 Difficulty Rogue Special Mode None Game No. 111 Rogue 111 Adventurer 0 Explorer 0 Win Type - Total 0 Types 0/0/0/0/0/0/0/0/0 Lore% 24 Gallery% 29 Achievement% 26 Wizard Run 0 Options --------- ASCII 0 Keyboard 0 Movement Numpad Keybinds 0 Fullscreen 1 Font 12/Smallcaps Map View 83x54 Tactical HUD 1 Map Filters NONE Filters NONE Steam 1 RUN: d5305e99-4872-4003-a2af-088df454de48